[Event "ETCC Women 2013"]
[Site "Warsaw"]
[Date "2013.11.14"]
[Round "6"]
[White "Vasiliev, Olga"]
[Black "Machlik, Monika"]
[Result "1-0"]
[ECO "B04"]
[WhiteElo "2282"]
[BlackElo "1936"]
[PlyCount "115"]
[EventDate "2013.??.??"]
[EventCountry "POL"]
[WhiteTeam "Israel"]
[BlackTeam "Norway"]
[WhiteTeamCountry "ISR"]
[BlackTeamCountry "NOR"]
[TimeControl "40/5400+30:1800+30"]

1. e4 {[%emt 0:00:00]} Nf6 {[%emt 0:00:00]} 2. e5 {[%emt 0:00:00]} Nd5 {[%emt
0:00:00]} 3. d4 {[%emt 0:00:00]} d6 {[%emt 0:00:00]} 4. Nf3 {[%emt 0:00:12]} g6
{[%emt 0:00:02]} 5. Bc4 {[%emt 0:00:35]} Nb6 {[%emt 0:00:07]} 6. Bb3 {[%emt 0:
00:05]} Bg7 {[%emt 0:00:18]} 7. Ng5 {[%emt 0:00:15]} d5 {[%emt 0:00:18]} 8. f4
{[%emt 0:00:07]} f6 {[%emt 0:00:17]} 9. Nf3 {[%emt 0:00:24]} Nc6 {[%emt 0:00:
21]} 10. O-O {[%emt 0:00:59]} O-O {[%emt 0:00:32]} 11. c3 {[%emt 0:03:06]} Bf5
{[%emt 0:01:28]} 12. Nh4 {[%emt 0:04:59]} e6 {[%emt 0:01:59]} 13. Nxf5 {[%emt
0:03:40]} exf5 {[%emt 0:02:19]} 14. Nd2 {[%emt 0:06:27]} Re8 {[%emt 0:10:28]}
15. Nf3 {[%emt 0:06:17]} Qe7 {[%emt 0:27:17]} 16. Qe1 {[%emt 0:19:56]} Nd8 {
[%emt 0:07:03]} 17. Qg3 {[%emt 0:04:23]} Qf7 {[%emt 0:24:15]} 18. h4 {[%emt 0:
10:17]} h5 {[%emt 0:05:42]} 19. Be3 {[%emt 0:00:52]} Ne6 {[%emt 0:01:02]} 20.
Rad1 {[%emt 0:05:01]} Rad8 {[%emt 0:00:27]} 21. Bc2 {[%emt 0:01:14]} c6 {[%emt
0:00:46]} 22. b3 {[%emt 0:01:19]} Re7 {[%emt 0:02:04]} 23. Bc1 {[%emt 0:00:54]}
Ree8 {[%emt 0:01:08]} 24. Kh1 {[%emt 0:04:05]} a5 {[%emt 0:03:06]} 25. a4 {
[%emt 0:01:47]} Kh7 {[%emt 0:02:10]} 26. Rfe1 {[%emt 0:01:21]} Nd7 {[%emt 0:03:
14]} 27. c4 {[%emt 0:01:57]} Nb6 {[%emt 0:00:23]} 28. c5 {[%emt 0:01:15]} Nd7 {
[%emt 0:00:51]} 29. Bd2 {[%emt 0:03:08]} Ra8 {[%emt 0:00:14]} 30. Re2 {[%emt 0:
03:08]} Ndf8 {[%emt 0:01:40]} 31. Rb1 {[%emt 0:03:03]} Kh8 {[%emt 0:01:55]} 32.
b4 {[%emt 0:02:52]} axb4 {[%emt 0:00:14]} 33. Rxb4 {[%emt 0:00:07]} Reb8 {
[%emt 0:01:55]} 34. Re1 {[%emt 0:00:42]} Rc8 {[%emt 0:01:22]} 35. Reb1 {[%emt
0:02:45]} Rc7 {[%emt 0:00:10]} 36. Rb6 {[%emt 0:00:42]} Ra7 {[%emt 0:00:36]}
37. a5 {[%emt 0:01:11]} Nd7 {[%emt 0:00:23]} 38. Bd3 {[%emt 0:00:37]} Nb8 {
[%emt 0:01:39]} 39. R1b2 {[%emt 0:03:52]} Kh7 {[%emt 0:00:44]} 40. Qe1 {[%emt
0:00:00]} Kh8 {[%emt 0:00:00]} 41. g3 {[%emt 0:04:10]} Re7 {[%emt 0:04:34]} 42.
Qb1 {[%emt 0:00:56]} Nd8 {[%emt 0:03:43]} 43. a6 {[%emt 0:04:03]} Nxa6 {[%emt
0:03:47]} 44. Ra2 {[%emt 0:01:13]} Kh7 {[%emt 0:03:13]} 45. Bxa6 {[%emt 0:00:
44]} bxa6 {[%emt 0:01:25]} 46. Raxa6 {[%emt 0:00:27]} Rxa6 {[%emt 0:00:43]} 47.
Rxa6 {[%emt 0:00:07]} Rb7 {[%emt 0:00:43]} 48. Rb6 {[%emt 0:01:16]} Ra7 {[%emt
0:01:01]} 49. Kg2 {[%emt 0:00:38]} Qd7 {[%emt 0:00:32]} 50. Qe1 {[%emt 0:02:07]
} Ra2 {[%emt 0:01:03]} 51. Qe3 {[%emt 0:01:17]} Ne6 {[%emt 0:01:20]} 52. Rb8 {
[%emt 0:01:14]} Qc7 {[%emt 0:03:01]} 53. exf6 {[%emt 0:02:10]} Qxb8 {[%emt 0:
05:55]} 54. Qxe6 {[%emt 0:00:31]} Rxd2+ {[%emt 0:01:07]} 55. Nxd2 {[%emt 0:00:
17]} Bxf6 {[%emt 0:05:43]} 56. Qxf6 {[%emt 0:00:15]} Qe8 {[%emt 0:00:06]} 57.
Qe5 {[%emt 0:00:16]} Qd8 {[%emt 0:00:14]} 58. Nf3 {[%emt 0:00:25]} 1-0

[Event "ETCC Women 2013"]
[Site "Warsaw"]
[Date "2013.11.14"]
[Round "6"]
[White "Videnova, Iva"]
[Black "Stojanovic, Andjelija"]
[Result "1/2-1/2"]
[ECO "B30"]
[WhiteElo "2272"]
[BlackElo "2293"]
[PlyCount "88"]
[EventDate "2013.??.??"]
[EventCountry "POL"]
[WhiteTeam "Bulgaria"]
[BlackTeam "Serbia"]
[WhiteTeamCountry "BUL"]
[BlackTeamCountry "SRB"]
[TimeControl "40/5400+30:1800+30"]

1. e4 {[%emt 0:00:00]} c5 {[%emt 0:00:00]} 2. Nf3 {[%emt 0:00:00]} Nc6 {[%emt
0:00:00]} 3. Bb5 {[%emt 0:00:00]} e6 {[%emt 0:03:39]} 4. O-O {[%emt 0:01:03]}
Nge7 {[%emt 0:00:04]} 5. c3 {[%emt 0:01:38]} a6 {[%emt 0:03:06]} 6. Ba4 {[%emt
0:09:00]} b5 {[%emt 0:27:34]} 7. Bc2 {[%emt 0:04:27]} Bb7 {[%emt 0:00:57]} 8.
Qe2 {[%emt 0:09:07]} Ng6 {[%emt 0:09:30]} 9. g3 {[%emt 0:07:44]} d5 {[%emt 0:
09:12]} 10. e5 {[%emt 0:08:05]} d4 {[%emt 0:02:19]} 11. Be4 {[%emt 0:05:07]} d3
{[%emt 0:18:03]} 12. Qe3 {[%emt 0:10:37]} c4 {[%emt 0:02:52]} 13. b3 {[%emt 0:
00:34]} Qc7 {[%emt 0:04:06]} 14. bxc4 {[%emt 0:02:38]} bxc4 {[%emt 0:00:08]}
15. Na3 {[%emt 0:00:48]} Na5 {[%emt 0:02:10]} 16. Bxb7 {[%emt 0:04:21]} Qxb7 {
[%emt 0:00:07]} 17. h4 {[%emt 0:01:26]} Rc8 {[%emt 0:03:26]} 18. Rb1 {[%emt 0:
10:32]} Qd5 {[%emt 0:03:34]} 19. Re1 {[%emt 0:04:48]} Bc5 {[%emt 0:00:25]} 20.
Qe4 {[%emt 0:00:08]} O-O {[%emt 0:05:47]} 21. h5 {[%emt 0:02:35]} Qxe4 {[%emt
0:02:20]} 22. Rxe4 {[%emt 0:00:13]} Ne7 {[%emt 0:00:02]} 23. Kg2 {[%emt 0:00:
37]} f5 {[%emt 0:01:34]} 24. exf6 {[%emt 0:00:54]} Rxf6 {[%emt 0:00:03]} 25.
Nxc4 {[%emt 0:04:55]} Rcf8 {[%emt 0:00:09]} 26. Nce5 {[%emt 0:01:12]} Nac6 {
[%emt 0:01:02]} 27. Rf4 {[%emt 0:01:28]} Rxf4 {[%emt 0:00:40]} 28. gxf4 {[%emt
0:00:08]} Rxf4 {[%emt 0:00:12]} 29. Nxd3 {[%emt 0:00:29]} Rf5 {[%emt 0:00:39]}
30. Nxc5 {[%emt 0:01:08]} Rxc5 {[%emt 0:00:02]} 31. Ba3 {[%emt 0:02:18]} Rxh5 {
[%emt 0:00:53]} 32. Rb6 {[%emt 0:01:00]} Ra5 {[%emt 0:00:35]} 33. Bxe7 {[%emt
0:00:37]} Nxe7 {[%emt 0:00:02]} 34. Rxe6 {[%emt 0:00:12]} Kf7 {[%emt 0:01:13]}
35. Rd6 {[%emt 0:01:44]} h6 {[%emt 0:00:29]} 36. c4 {[%emt 0:01:05]} Nf5 {
[%emt 0:00:31]} 37. Rc6 {[%emt 0:02:04]} Rxa2 {[%emt 0:00:14]} 38. d4 {[%emt 0:
02:19]} Rc2 {[%emt 0:00:21]} 39. c5 {[%emt 0:00:50]} a5 {[%emt 0:00:29]} 40.
Ra6 {[%emt 0:00:00]} Ne3+ {[%emt 0:00:00]} 41. Kg3 {[%emt 0:02:50]} Nf1+ {
[%emt 0:06:57]} 42. Kg2 {[%emt 0:04:30]} Ne3+ {[%emt 0:01:32]} 43. Kg3 {[%emt
0:00:11]} Nf1+ {[%emt 0:00:10]} 44. Kg2 {[%emt 0:00:22]} Ne3+ {[%emt 0:00:07]}
1/2-1/2

[Event "ETCC Women 2013"]
[Site "Warsaw"]
[Date "2013.11.14"]
[Round "6"]
[White "Wisniowska, Klaudia"]
[Black "Haast, Anne"]
[Result "1/2-1/2"]
[ECO "B47"]
[WhiteElo "2153"]
[BlackElo "2262"]
[PlyCount "131"]
[EventDate "2013.??.??"]
[EventCountry "POL"]
[WhiteTeam "Poland"]
[BlackTeam "Netherlands"]
[WhiteTeamCountry "POL"]
[BlackTeamCountry "NED"]
[TimeControl "40/5400+30:1800+30"]

1. e4 c5 2. Nf3 e6 3. d4 cxd4 4. Nxd4 Nc6 5. Nc3 Qc7 6. Be2 a6 7. O-O Nf6 8.
Be3 Bb4 9. Na4 Be7 10. Nxc6 bxc6 11. Nb6 Rb8 12. Nxc8 Qxc8 13. Bd4 c5 14. Be5
Rb6 15. Qd3 d6 16. Bc3 O-O 17. b3 d5 18. exd5 Nxd5 19. Be5 Bf6 20. Bxf6 Nxf6
21. Rad1 Qc7 22. Rd2 h6 23. Rfd1 Re8 24. g3 e5 25. Qf5 g6 26. Qh3 Kg7 27. Bc4
Rf8 28. Qg2 e4 29. a4 h5 30. Qf1 h4 31. Qe2 Re8 32. Qe3 Qe5 33. Rd8 Rxd8 34.
Rxd8 hxg3 35. hxg3 g5 36. f4 gxf4 37. Qxf4 Qxf4 38. gxf4 Kg6 39. a5 Rc6 40. Ra8
Rd6 41. Rxa6 Rd1+ 42. Kf2 Ra1 43. Ra7 Kf5 44. a6 Ng4+ 45. Ke2 f6 46. Rc7 Ra2
47. Rxc5+ Kxf4 48. Bb5 Ne3 49. Kd2 Ra5 50. b4 Ra2 51. Be2 f5 52. b5 Ra5 53. Rc6
Nd5 54. b6 Ra1 55. Rd6 e3+ 56. Kd3 Nb4+ 57. Kc3 Nxa6 58. Kb2 Ra5 59. Bxa6 Rxa6
60. b7 Rxd6 61. b8=Q Ke5 62. Qb5+ Rd5 63. Qe8+ Kf4 64. Kc3 Re5 65. Qa4+ Re4 66.
Qa1 1/2-1/2

[Event "ETCC Women 2013"]
[Site "Warsaw"]
[Date "2013.11.14"]
[Round "6"]
[White "Zaksaite, Salomeja"]
[Black "Mamedjarova, Turkan"]
[Result "1-0"]
[ECO "C80"]
[WhiteElo "2200"]
[BlackElo "2250"]
[PlyCount "95"]
[EventDate "2013.??.??"]
[EventCountry "POL"]
[WhiteTeam "Lithuania"]
[BlackTeam "Azerbaijan"]
[WhiteTeamCountry "LTU"]
[BlackTeamCountry "AZE"]
[TimeControl "40/5400+30:1800+30"]

1. e4 {[%emt 0:00:00]} e5 {[%emt 0:00:00]} 2. Nf3 {[%emt 0:00:00]} Nc6 {[%emt
0:00:00]} 3. Bb5 {[%emt 0:00:03]} a6 {[%emt 0:00:00]} 4. Ba4 {[%emt 0:00:26]}
Nf6 {[%emt 0:00:17]} 5. O-O {[%emt 0:00:10]} Nxe4 {[%emt 0:00:15]} 6. d4 {
[%emt 0:00:22]} b5 {[%emt 0:00:20]} 7. Bb3 {[%emt 0:00:11]} d5 {[%emt 0:00:05]}
8. dxe5 {[%emt 0:00:14]} Be6 {[%emt 0:00:03]} 9. Nbd2 {[%emt 0:04:38]} Bc5 {
[%emt 0:01:27]} 10. Nxe4 {[%emt 0:19:00]} dxe4 {[%emt 0:00:05]} 11. Ng5 {[%emt
0:02:12]} Qxd1 {[%emt 0:47:05]} 12. Rxd1 {[%emt 0:00:07]} Bxb3 {[%emt 0:00:07]}
13. axb3 {[%emt 0:11:04]} O-O {[%emt 0:06:16]} 14. Nxe4 {[%emt 0:03:51]} Bd4 {
[%emt 0:01:30]} 15. c3 {[%emt 0:05:33]} Bxe5 {[%emt 0:00:43]} 16. f4 {[%emt 0:
04:50]} f5 {[%emt 0:13:34]} 17. Nc5 {[%emt 0:00:21]} Bd6 {[%emt 0:00:18]} 18.
Nb7 {[%emt 0:03:51]} Be7 {[%emt 0:05:24]} 19. Rd7 {[%emt 0:04:14]} Rfc8 {[%emt
0:01:55]} 20. Be3 {[%emt 0:01:09]} Bf6 {[%emt 0:01:05]} 21. b4 {[%emt 0:02:53]}
Re8 {[%emt 0:03:26]} 22. Kf2 {[%emt 0:03:02]} Re7 {[%emt 0:01:42]} 23. Rd3 {
[%emt 0:05:02]} Ree8 {[%emt 0:03:18]} 24. Rd5 {[%emt 0:02:48]} Ne7 {[%emt 0:00:
59]} 25. Rd7 {[%emt 0:00:29]} c6 {[%emt 0:00:11]} 26. Nd6 {[%emt 0:02:44]} Rf8
{[%emt 0:02:04]} 27. Bc5 {[%emt 0:00:20]} g6 {[%emt 0:03:22]} 28. Kf3 {[%emt 0:
07:23]} Nd5 {[%emt 0:00:35]} 29. Nb7 {[%emt 0:05:32]} Rfe8 {[%emt 0:00:29]} 30.
Rd6 {[%emt 0:06:48]} Re4 {[%emt 0:00:07]} 31. g3 {[%emt 0:00:10]} Rae8 {[%emt
0:00:14]} 32. Rxa6 {[%emt 0:01:37]} Be7 {[%emt 0:01:29]} 33. Raxc6 {[%emt 0:02:
02]} Bxd6 {[%emt 0:00:20]} 34. Rxd6 {[%emt 0:00:55]} Ne3 {[%emt 0:00:53]} 35.
Rd7 {[%emt 0:00:43]} Ng4 {[%emt 0:02:30]} 36. Rd2 {[%emt 0:00:26]} Re1 {[%emt
0:00:23]} 37. Nd6 {[%emt 0:01:05]} Ra8 {[%emt 0:01:05]} 38. Nxb5 {[%emt 0:00:
28]} Raa1 {[%emt 0:00:43]} 39. Nd6 {[%emt 0:01:15]} Rf1+ {[%emt 0:01:30]} 40.
Kg2 {[%emt 0:00:00]} Rh1 {[%emt 0:00:00]} 41. Kh3 {[%emt 0:04:40]} Rad1 {[%emt
0:01:00]} 42. Rc2 {[%emt 0:00:24]} Rc1 {[%emt 0:00:09]} 43. Rg2 {[%emt 0:00:16]
} h6 {[%emt 0:00:38]} 44. b5 {[%emt 0:01:10]} g5 {[%emt 0:00:04]} 45. Nxf5 {
[%emt 0:02:50]} Nxh2 {[%emt 0:00:16]} 46. Rxh2 {[%emt 0:02:41]} g4+ {[%emt 0:
00:04]} 47. Kg2 {[%emt 0:00:32]} Rhd1 {[%emt 0:00:54]} 48. Nxh6+ {[%emt 0:00:
40]} 1-0

[Event "ETCC Women 2013"]
[Site "Warsaw"]
[Date "2013.11.14"]
[Round "6"]
[White "Zhukova, Natalia"]
[Black "Javakhishvili, Lela"]
[Result "0-1"]
[ECO "E32"]
[WhiteElo "2466"]
[BlackElo "2423"]
[PlyCount "80"]
[EventDate "2013.??.??"]
[EventCountry "POL"]
[WhiteTeam "Ukraine"]
[BlackTeam "Georgia"]
[WhiteTeamCountry "UKR"]
[BlackTeamCountry "GEO"]
[TimeControl "40/5400+30:1800+30"]

1. d4 {[%emt 0:00:00]} Nf6 {[%emt 0:00:00]} 2. c4 {[%emt 0:00:00]} e6 {[%emt 0:
00:00]} 3. Nc3 {[%emt 0:00:13]} Bb4 {[%emt 0:00:00]} 4. Qc2 {[%emt 0:00:17]}
O-O {[%emt 0:00:48]} 5. a3 {[%emt 0:00:22]} Bxc3+ {[%emt 0:00:06]} 6. Qxc3 {
[%emt 0:00:06]} b6 {[%emt 0:00:23]} 7. Bg5 {[%emt 0:00:34]} Bb7 {[%emt 0:00:20]
} 8. f3 {[%emt 0:00:47]} d6 {[%emt 0:02:36]} 9. e4 {[%emt 0:01:32]} c5 {[%emt
0:02:30]} 10. dxc5 {[%emt 0:00:34]} bxc5 {[%emt 0:00:08]} 11. Bxf6 {[%emt 0:00:
22]} Qxf6 {[%emt 0:05:32]} 12. Qxf6 {[%emt 0:00:45]} gxf6 {[%emt 0:00:04]} 13.
b4 {[%emt 0:00:19]} cxb4 {[%emt 0:08:50]} 14. axb4 {[%emt 0:00:16]} Nc6 {[%emt
0:00:22]} 15. Ra4 {[%emt 0:02:56]} Ne5 {[%emt 0:04:38]} 16. Kd2 {[%emt 0:52:11]
} Rfc8 {[%emt 0:01:49]} 17. b5 {[%emt 0:03:05]} a5 {[%emt 0:11:05]} 18. Bd3 {
[%emt 0:10:20]} d5 {[%emt 0:10:19]} 19. exd5 {[%emt 0:03:42]} exd5 {[%emt 0:00:
28]} 20. Ne2 {[%emt 0:00:29]} dxc4 {[%emt 0:01:27]} 21. Bc2 {[%emt 0:05:06]}
c3+ {[%emt 0:09:50]} 22. Nxc3 {[%emt 0:04:59]} Rd8+ {[%emt 0:11:42]} 23. Ke2 {
[%emt 0:00:34]} Rac8 {[%emt 0:00:29]} 24. Be4 {[%emt 0:09:28]} Bxe4 {[%emt 0:
04:28]} 25. Nxe4 {[%emt 0:00:02]} f5 {[%emt 0:01:41]} 26. Nf6+ {[%emt 0:00:33]}
Kg7 {[%emt 0:01:27]} 27. Nh5+ {[%emt 0:00:13]} Kh6 {[%emt 0:00:30]} 28. Ng3 {
[%emt 0:02:40]} Rc2+ {[%emt 0:02:42]} 29. Ke3 {[%emt 0:00:01]} Nc4+ {[%emt 0:
02:16]} 30. Rxc4 {[%emt 0:01:09]} Rxc4 {[%emt 0:00:11]} 31. Nxf5+ {[%emt 0:00:
15]} Kg5 {[%emt 0:01:12]} 32. Ng3 {[%emt 0:01:13]} Rc3+ {[%emt 0:01:49]} 33.
Ke2 {[%emt 0:00:31]} f5 {[%emt 0:08:43]} 34. h4+ {[%emt 0:00:43]} Kg6 {[%emt 0:
01:29]} 35. Ra1 {[%emt 0:00:26]} Rc2+ {[%emt 0:00:37]} 36. Ke3 {[%emt 0:00:31]}
Rxg2 {[%emt 0:01:42]} 37. Kf4 {[%emt 0:00:41]} Rd4+ {[%emt 0:00:51]} 38. Ke5 {
[%emt 0:00:03]} Rb4 {[%emt 0:00:08]} 39. h5+ {[%emt 0:00:29]} Kg5 {[%emt 0:00:
18]} 40. f4+ {[%emt 0:00:00]} Kg4 {[%emt 0:00:00]} 0-1

[Event "ETCC Women 2013"]
[Site "Warsaw"]
[Date "2013.11.14"]
[Round "6"]
[White "Zimina, Olga"]
[Black "Milliet, Sophie"]
[Result "1/2-1/2"]
[ECO "A09"]
[WhiteElo "2338"]
[BlackElo "2383"]
[PlyCount "149"]
[EventDate "2013.??.??"]
[EventCountry "POL"]
[WhiteTeam "Italy"]
[BlackTeam "France"]
[WhiteTeamCountry "ITA"]
[BlackTeamCountry "FRA"]
[TimeControl "40/5400+30:1800+30"]

1. Nf3 {[%emt 0:00:00]} d5 {[%emt 0:00:00]} 2. c4 {[%emt 0:00:00]} d4 {[%emt 0:
00:00]} 3. g3 {[%emt 0:00:58]} Nc6 {[%emt 0:00:23]} 4. Bg2 {[%emt 0:00:18]} e5
{[%emt 0:00:05]} 5. O-O {[%emt 0:00:10]} Nf6 {[%emt 0:00:05]} 6. d3 {[%emt 0:
00:09]} Bd6 {[%emt 0:00:09]} 7. e3 {[%emt 0:02:08]} O-O {[%emt 0:00:08]} 8.
exd4 {[%emt 0:00:27]} Nxd4 {[%emt 0:00:05]} 9. Nxd4 {[%emt 0:00:07]} exd4 {
[%emt 0:00:03]} 10. Nd2 {[%emt 0:01:18]} Rb8 {[%emt 0:01:57]} 11. Nf3 {[%emt 0:
05:22]} Bg4 {[%emt 0:05:58]} 12. h3 {[%emt 0:08:25]} Bh5 {[%emt 0:03:01]} 13.
Re1 {[%emt 0:06:07]} c5 {[%emt 0:08:20]} 14. g4 {[%emt 0:11:54]} Bg6 {[%emt 0:
00:07]} 15. Bg5 {[%emt 0:01:47]} h6 {[%emt 0:01:50]} 16. Bh4 {[%emt 0:00:41]}
Bf4 {[%emt 0:00:40]} 17. Ne5 {[%emt 0:03:49]} Re8 {[%emt 0:35:29]} 18. Bxf6 {
[%emt 0:15:32]} gxf6 {[%emt 0:00:04]} 19. Nxg6 {[%emt 0:01:03]} fxg6 {[%emt 0:
00:08]} 20. Qf3 {[%emt 0:02:55]} Be5 {[%emt 0:00:57]} 21. h4 {[%emt 0:06:01]}
Re7 {[%emt 0:03:18]} 22. Kf1 {[%emt 0:08:22]} Qc7 {[%emt 0:07:59]} 23. Qe4 {
[%emt 0:01:27]} Rg7 {[%emt 0:01:39]} 24. g5 {[%emt 0:04:17]} hxg5 {[%emt 0:00:
25]} 25. hxg5 {[%emt 0:00:02]} Rf8 {[%emt 0:01:30]} 26. Bh3 {[%emt 0:07:46]}
Kh8 {[%emt 0:01:58]} 27. Kg2 {[%emt 0:00:19]} Rh7 {[%emt 0:02:08]} 28. Re2 {
[%emt 0:09:38]} Rh5 {[%emt 0:11:30]} 29. gxf6 {[%emt 0:00:50]} Bxf6 {[%emt 0:
02:04]} 30. Rh1 {[%emt 0:00:47]} Kg7 {[%emt 0:01:04]} 31. Qe6 {[%emt 0:01:55]}
Qf4 {[%emt 0:01:12]} 32. Qe4 {[%emt 0:00:41]} Rg5+ {[%emt 0:04:58]} 33. Kf1 {
[%emt 0:00:05]} Qc1+ {[%emt 0:00:34]} 34. Re1 {[%emt 0:00:01]} Qxb2 {[%emt 0:
00:08]} 35. Qe2 {[%emt 0:00:58]} Qxe2+ {[%emt 0:03:38]} 36. Rxe2 {[%emt 0:00:
08]} Re5 {[%emt 0:01:45]} 37. Bg2 {[%emt 0:00:31]} Rxe2 {[%emt 0:00:41]} 38.
Kxe2 {[%emt 0:00:03]} Re8+ {[%emt 0:00:05]} 39. Be4 {[%emt 0:00:28]} Re6 {
[%emt 0:00:11]} 40. Rg1 {[%emt 0:00:00]} Be5 {[%emt 0:00:00]} 41. Rb1 {[%emt 0:
02:57]} b6 {[%emt 0:03:35]} 42. a4 {[%emt 0:03:02]} Bc7 {[%emt 0:03:26]} 43.
Rg1 {[%emt 0:01:34]} Bd8 {[%emt 0:03:05]} 44. Rh1 {[%emt 0:03:05]} Bg5 {[%emt
0:02:51]} 45. Rg1 {[%emt 0:03:06]} Bf4 {[%emt 0:00:23]} 46. Rh1 {[%emt 0:01:48]
} Rd6 {[%emt 0:00:47]} 47. Rg1 {[%emt 0:00:42]} Rf6 {[%emt 0:00:15]} 48. Bd5 {
[%emt 0:01:56]} Bh2 {[%emt 0:01:36]} 49. Rh1 {[%emt 0:01:13]} Bc7 {[%emt 0:00:
49]} 50. Be4 {[%emt 0:00:20]} Bd6 {[%emt 0:01:32]} 51. Rg1 {[%emt 0:01:09]} Be7
{[%emt 0:00:06]} 52. Rg2 {[%emt 0:00:28]} Re6 {[%emt 0:04:12]} 53. Rh2 {[%emt
0:00:06]} Re5 {[%emt 0:03:23]} 54. Rg2 {[%emt 0:00:39]} Rg5 {[%emt 0:00:26]}
55. Rxg5 {[%emt 0:02:11]} Bxg5 {[%emt 0:00:02]} 56. Bc6 {[%emt 0:02:31]} Kf6 {
[%emt 0:00:07]} 57. Be8 {[%emt 0:00:53]} Bh4 {[%emt 0:00:37]} 58. f4 {[%emt 0:
01:07]} Bg3 {[%emt 0:04:40]} 59. Kf3 {[%emt 0:00:07]} Be1 {[%emt 0:00:06]} 60.
Ke4 {[%emt 0:00:18]} Bd2 {[%emt 0:00:20]} 61. Kf3 {[%emt 0:00:17]} Kf5 {[%emt
0:00:40]} 62. Bd7+ {[%emt 0:00:08]} Kf6 {[%emt 0:00:03]} 63. Be8 {[%emt 0:00:
08]} g5 {[%emt 0:00:45]} 64. fxg5+ {[%emt 0:00:05]} Kxg5 {[%emt 0:00:03]} 65.
Ke4 {[%emt 0:02:06]} Kg4 {[%emt 0:00:15]} 66. Kd5 {[%emt 0:00:37]} Kf3 {[%emt
0:00:14]} 67. Kc6 {[%emt 0:00:15]} Ke2 {[%emt 0:00:39]} 68. Bg6 {[%emt 0:00:05]
} Ba5 {[%emt 0:01:09]} 69. Kb7 {[%emt 0:00:12]} Kd2 {[%emt 0:00:10]} 70. Kxa7 {
[%emt 0:00:08]} Kc3 {[%emt 0:00:04]} 71. Ka6 {[%emt 0:00:29]} Kb4 {[%emt 0:00:
05]} 72. Be8 {[%emt 0:00:07]} Kc3 {[%emt 0:00:04]} 73. Bg6 {[%emt 0:00:04]} Kb4
{[%emt 0:00:05]} 74. Be8 {[%emt 0:00:04]} Kc3 {[%emt 0:00:06]} 75. Bg6 {[%emt
0:00:05]} 1/2-1/2

[Event "ETCC Women 2013"]
[Site "Warsaw"]
[Date "2013.11.14"]
[Round "6"]
[White "Zozulia, Anna"]
[Black "Botsari, Anna-Maria"]
[Result "1-0"]
[ECO "B49"]
[WhiteElo "2334"]
[BlackElo "2338"]
[PlyCount "103"]
[EventDate "2013.??.??"]
[EventCountry "POL"]
[WhiteTeam "Belgium"]
[BlackTeam "Greece"]
[WhiteTeamCountry "BEL"]
[BlackTeamCountry "GRE"]
[TimeControl "40/5400+30:1800+30"]

1. e4 {[%emt 0:00:00]} c5 {[%emt 0:00:00]} 2. Nf3 {[%emt 0:00:00]} e6 {[%emt 0:
00:00]} 3. d4 {[%emt 0:00:00]} cxd4 {[%emt 0:00:00]} 4. Nxd4 {[%emt 0:00:00]}
Nc6 {[%emt 0:00:00]} 5. Nc3 {[%emt 0:00:09]} Qc7 {[%emt 0:00:00]} 6. Be3 {
[%emt 0:01:17]} a6 {[%emt 0:00:01]} 7. Be2 {[%emt 0:00:04]} Nf6 {[%emt 0:00:11]
} 8. O-O {[%emt 0:00:04]} Bb4 {[%emt 0:01:44]} 9. Na4 {[%emt 0:00:42]} O-O {
[%emt 0:01:13]} 10. Nxc6 {[%emt 0:05:22]} bxc6 {[%emt 0:00:18]} 11. Nb6 {[%emt
0:00:46]} Rb8 {[%emt 0:00:08]} 12. Nxc8 {[%emt 0:00:05]} Rfxc8 {[%emt 0:00:09]}
13. Bxa6 {[%emt 0:04:39]} Rf8 {[%emt 0:00:04]} 14. Bd3 {[%emt 0:07:08]} Bd6 {
[%emt 0:00:29]} 15. g3 {[%emt 0:08:23]} Be5 {[%emt 0:01:05]} 16. Rb1 {[%emt 0:
21:04]} Bxb2 {[%emt 0:03:32]} 17. c4 {[%emt 0:07:03]} Qa5 {[%emt 0:17:18]} 18.
Qe2 {[%emt 0:05:17]} Bc3 {[%emt 0:05:53]} 19. Rfc1 {[%emt 0:06:38]} d5 {[%emt
0:05:25]} 20. exd5 {[%emt 0:19:00]} cxd5 {[%emt 0:02:31]} 21. Bf4 {[%emt 0:08:
37]} Rxb1 {[%emt 0:03:36]} 22. Rxb1 {[%emt 0:00:14]} dxc4 {[%emt 0:09:42]} 23.
Bxc4 {[%emt 0:00:03]} Nd5 {[%emt 0:01:29]} 24. Be5 {[%emt 0:01:58]} Bxe5 {
[%emt 0:05:35]} 25. Qxe5 {[%emt 0:00:03]} Qc5 {[%emt 0:00:36]} 26. Bxd5 {[%emt
0:03:31]} Qxd5 {[%emt 0:01:34]} 27. Qxd5 {[%emt 0:00:03]} exd5 {[%emt 0:00:04]}
28. Rd1 {[%emt 0:01:07]} Rd8 {[%emt 0:00:10]} 29. Rd4 {[%emt 0:00:26]} Kf8 {
[%emt 0:00:06]} 30. Kf1 {[%emt 0:00:06]} Ke7 {[%emt 0:00:06]} 31. Ke2 {[%emt 0:
00:11]} Ra8 {[%emt 0:00:50]} 32. a4 {[%emt 0:00:39]} Ke6 {[%emt 0:01:27]} 33.
Kd3 {[%emt 0:00:21]} Rb8 {[%emt 0:00:37]} 34. Kc3 {[%emt 0:00:36]} Rc8+ {[%emt
0:05:52]} 35. Kb3 {[%emt 0:00:14]} Ke5 {[%emt 0:02:17]} 36. Rd1 {[%emt 0:01:23]
} Rc7 {[%emt 0:05:47]} 37. a5 {[%emt 0:00:24]} d4 {[%emt 0:02:10]} 38. a6 {
[%emt 0:00:31]} Ra7 {[%emt 0:03:20]} 39. Ra1 {[%emt 0:00:04]} d3 {[%emt 0:00:
49]} 40. Kc3 {[%emt 0:00:00]} Ke4 {[%emt 0:00:00]} 41. Ra2 {[%emt 0:12:17]} f5
{[%emt 0:14:19]} 42. Kd2 {[%emt 0:04:52]} g5 {[%emt 0:02:56]} 43. Ra4+ {[%emt
0:13:06]} Kf3 {[%emt 0:00:07]} 44. Kxd3 {[%emt 0:00:04]} Kxf2 {[%emt 0:00:26]}
45. Kd4 {[%emt 0:00:06]} f4 {[%emt 0:01:34]} 46. gxf4 {[%emt 0:00:08]} gxf4 {
[%emt 0:00:04]} 47. Ke4 {[%emt 0:00:04]} Kg2 {[%emt 0:03:48]} 48. Ra2+ {[%emt
0:00:08]} Kh3 49. Kxf4 {[%emt 0:01:23]} Rf7+ {[%emt 0:01:28]} 50. Kg5 {[%emt 0:
03:40]} Rg7+ {[%emt 0:00:09]} 51. Kh6 {[%emt 0:00:24]} Ra7 {[%emt 0:00:07]} 52.
Kh5 {[%emt 0:00:06]} 1-0